lending/lending_fUSD_20250819
["ID","MTS","AMOUNT","RATE_DAILY","PERIOD"]
[380264320,1755630367731,-400.0,0.00022999,30]
[380264321,1755630367780,-2093.14,0.00022999,30]
[380264322,1755630367828,-3535.78,0.00022999,30]
[380264323,1755630367878,-790.95,0.00022999,30]
[380264324,1755630367927,-593.85,0.00022999,30]
[380264325,1755630367982,-2875.96,0.00022999,30]
[380264326,1755630368039,-1760.72,0.00022999,30]
[380264327,1755630368094,-1801.97,0.00022999,30]
[380264328,1755630368152,-691.08,0.00022999,30]
[380264329,1755630368210,-400.0,0.00022999,30]
[380264330,1755630368268,-1936.37,0.00022999,30]
[380264331,1755630368328,-962.38,0.00022999,30]
[380264332,1755630368389,-6629.55,0.00022999,30]
[380264333,1755630368446,-400.0,0.00022999,30]
[380264334,1755630368501,-1485.42,0.00022999,30]
[380264335,1755630368553,-1571.26,0.00022999,30]
[380264336,1755630368605,-400.0,0.00022999,30]
[380264337,1755630368655,-400.0,0.00022999,30]
[380264338,1755630368709,-1374.41,0.00022999,30]
[380264339,1755630368760,-882.06,0.00022999,30]
[380264340,1755630368813,-400.0,0.00022999,30]
[380264341,1755630368863,-642.48,0.00022999,30]
[380264342,1755630368913,-203.71273472,0.00022999,30]
[380264343,1755630368964,-400.0,0.00022999,30]
[380264344,1755630369014,-2227.75,0.00022999,30]
[380264345,1755630369064,-400.0,0.00022999,30]
[380264346,1755630369117,-400.0,0.00022999,30]
[380264347,1755630369168,-935.31,0.00022999,30]
[380264348,1755630369221,-1008.89,0.00022999,30]
[380264349,1755630369274,-840.56,0.00022999,30]
[380264350,1755630369329,-400.0,0.00022999,30]
[380264351,1755630369382,-734.31,0.00022999,30]
[380264352,1755630369433,-1252.72,0.00022999,30]
[380264353,1755630369482,-760.31,0.00022999,30]
[380264354,1755630369528,-543.43,0.00022999,30]
[380264355,1755630369577,-400.0,0.00022999,30]
[380264356,1755630369629,-2330.1,0.00022999,30]
[380264357,1755630369679,-588.82,0.00022999,30]
[380264358,1755630369727,-3829.85,0.00022999,30]
[380264359,1755630369775,-7723.15,0.00022999,30]
[380264360,1755630369825,-498.35,0.00022999,30]
[380264361,1755630369878,-400.0,0.00022999,30]
[380264362,1755630369935,-400.0,0.00022999,30]
[380264363,1755630369987,-500.0,0.00022999,30]
[380264364,1755630370041,-198.85,0.00022999,30]
[380264365,1755630370092,-280.83055077,0.00022999,30]
[380264366,1755630370146,-1235.39,0.00022999,30]
[380264367,1755630370202,-1209.49,0.00022999,30]
[380264368,1755630370256,-400.0,0.00022999,30]
[380264369,1755630370312,-400.0,0.00022999,30]
[380264370,1755630370365,-511.33445858,0.00022999,30]
[380264371,1755630370419,-1853.54,0.00022999,30]
[380264372,1755630370491,-818.2,0.00022999,30]
[380264373,1755630370551,-1158.12,0.00022999,30]
[380264374,1755630370605,-2433.89,0.00022999,30]
[380264375,1755630370660,-1529.71,0.00022999,30]
[380264376,1755630370716,-400.0,0.00022999,30]
[380264377,1755630370773,-1841.72,0.00022999,30]
[380264378,1755630370829,-845.97,0.00022999,30]
[380264379,1755630370883,-1453.42,0.00022999,30]
[380264380,1755630370937,-2766.54,0.00022999,30]
[380264381,1755630370989,-400.0,0.00022999,30]
[380264382,1755630371041,-1268.36,0.00022999,30]
[380264383,1755630371094,-4306.06,0.00022999,30]
[380264384,1755630371147,-1399.51,0.00022999,30]
[380264385,1755630371200,-400.0,0.00022999,30]
[380264386,1755630371253,-1608.12,0.00022999,30]
[380264387,1755630371308,-838.71,0.00022999,30]
[380264388,1755630371362,-2072.48,0.00022999,30]
[380264389,1755630371416,-400.0,0.00022999,30]
[380264390,1755630371473,-2234.05,0.00022999,30]
[380264391,1755630371528,-553.19,0.00022999,30]
[380264392,1755630371580,-1812.25,0.00022999,30]
[380264393,1755630371629,-2377.86,0.00022999,30]
[380264394,1755630371678,-400.0,0.00022999,30]
[380264395,1755630371731,-1536.53,0.00022999,30]
[380264396,1755630371783,-9961.97,0.00022999,30]
[380264397,1755630371836,-400.0,0.00022999,30]
[380264398,1755630371886,-656.71,0.00022999,30]
[380264399,1755630371939,-2504.11,0.00022999,30]
[380264400,1755630371988,-400.0,0.00022999,30]
[380264401,1755630372407,-1003.6,0.00022999,30]
[380264402,1755630372463,-491.09,0.00022999,30]
[380264403,1755630372519,-413.01211591,0.00022999,30]
[380264404,1755630372573,-8067.69,0.00022999,30]
[380264405,1755630372625,-400.0,0.00022999,30]
[380264406,1755630372674,-575.64,0.00022999,30]
[380264407,1755630372723,-400.0,0.00022999,30]
[380264408,1755630372775,-890.27,0.00022999,30]
[380264409,1755630372826,-2729.75,0.00022999,30]
[380264410,1755630372882,-400.0,0.00022999,30]
[380264411,1755630372941,-400.0,0.00022999,30]
[380264412,1755630372999,-1424.34,0.00022999,30]
[380264413,1755630373071,-400.0,0.00022999,30]
[380264414,1755630373128,-400.0,0.00022999,30]
[380264415,1755630373183,-887.1,0.00022999,30]
[380264416,1755630373242,-3126.4,0.00022999,30]
[380264417,1755630373296,-401.13095356,0.00022999,30]
[380264418,1755630373351,-1586.0,0.00022999,30]
[380264419,1755630373407,-400.0,0.00022999,30]
[380264420,1755630373460,-2791.41,0.00022999,30]
[380264421,1755630373514,-400.0,0.00022999,30]
[380264422,1755630373567,-400.0,0.00022999,30]
[380264423,1755630373618,-1550.01,0.00022999,30]
[380264424,1755630373670,-468.86,0.00022999,30]
[380264425,1755630373729,-1245.26,0.00022999,30]
[380264426,1755630373783,-665.78,0.00022999,30]
[380264427,1755630373834,-1005.04,0.00022999,30]
[380264428,1755630373888,-400.0,0.00022999,30]
[380264429,1755630373942,-1677.64,0.00022999,30]
[380264430,1755630373994,-3451.63,0.00022999,30]
[380264431,1755630374045,-400.0,0.00022999,30]
[380264432,1755630374103,-1183.6,0.00022999,30]
[380264433,1755630374156,-400.0,0.00022999,30]
[380264434,1755630374206,-400.0,0.00022999,30]
[380264435,1755630374256,-400.0,0.00022999,30]
[380264436,1755630374307,-1571.68,0.00022999,30]
[380264437,1755630374360,-1015.91,0.00022999,30]
[380264438,1755630374411,-400.0,0.00022999,30]
[380264439,1755630374461,-400.0,0.00022999,30]
[380264440,1755630374509,-2292.6,0.00022999,30]
[380264441,1755630374557,-400.0,0.00022999,30]
[380264442,1755630374606,-582.26,0.00022999,30]
[380264443,1755630374656,-734.99,0.00022999,30]
[380264444,1755630374704,-3306.45,0.00022999,30]
[380264445,1755630374753,-1852.19,0.00022999,30]
[380264446,1755630374802,-2622.46,0.00022999,30]
[380264447,1755630374852,-2734.83,0.00022999,30]
[380264448,1755630374903,-953.11,0.00022999,30]
[380264449,1755630374954,-400.0,0.00022999,30]
[380264450,1755630375013,-1981.94,0.00022999,30]
[380264451,1755630375067,-553.29,0.00022999,30]
[380264452,1755630375123,-2816.0,0.00022999,30]
[380264453,1755630375181,-486.58,0.00022999,30]
[380264454,1755630375239,-987.13,0.00022999,30]
[380264455,1755630375297,-400.0,0.00022999,30]
[380264456,1755630375354,-2042.8,0.00022999,30]
[380264457,1755630375409,-1957.69,0.00022999,30]
[380264458,1755630375464,-713.66,0.00022999,30]
[380264459,1755630375518,-1769.53,0.00022999,30]
[380264460,1755630375580,-1151.9,0.00022999,30]
[380264461,1755630375636,-400.0,0.00022999,30]
[380264462,1755630375692,-515.74564485,0.00022999,30]
[380264463,1755630375745,-5769.64,0.00022999,30]
[380264464,1755630375796,-2040.2,0.00022999,30]
[380264465,1755630375849,-2191.01,0.00022999,30]
[380264466,1755630375899,-1484.23,0.00022999,30]
[380264467,1755630375949,-1462.98,0.00022999,30]
[380264468,1755630375999,-400.0,0.00022999,30]
[380264469,1755630376049,-400.0,0.00022999,30]
[380264470,1755630376100,-400.0,0.00022999,30]
[380264471,1755630376154,-1594.1,0.00022999,30]
[380264472,1755630376207,-400.0,0.00022999,30]
[380264473,1755630376260,-1595.91,0.00022999,30]
[380264474,1755630376313,-400.0,0.00022999,30]
[380264475,1755630376367,-584.29,0.00022999,30]
[380264476,1755630376422,-5682.7,0.00022999,30]
[380264477,1755630376479,-3407.34,0.00022999,30]
[380264478,1755630376529,-400.0,0.00022999,30]
[380264479,1755630376580,-196.59621083,0.00022999,30]
[380264480,1755630376629,-400.0,0.00022999,30]
[380264481,1755630376695,-1455.26,0.00022999,30]
[380264482,1755630376747,-1158.18,0.00022999,30]
[380264483,1755630376799,-1790.8,0.00022999,30]
[380264484,1755630376851,-1524.7,0.00022999,30]
[380264485,1755630376903,-2909.2,0.00022999,30]
[380264486,1755630376954,-644.07,0.00022999,30]
[380264487,1755630377007,-4608.49,0.00022999,30]
[380264488,1755630377058,-1873.68,0.00022999,30]
[380264489,1755630377109,-400.0,0.00022999,30]
[380264490,1755630377162,-181.2063777,0.00022999,30]
[380264491,1755630377218,-3932.3,0.00022999,30]
[380264492,1755630377271,-400.0,0.00022999,30]
[380264493,1755630377326,-400.0,0.00022999,30]
[380264494,1755630377381,-3025.09,0.00022999,30]
[380264495,1755630377436,-418.26838162,0.00022999,30]
[380264496,1755630377492,-400.0,0.00022999,30]
[380264497,1755630377544,-2938.04,0.00022999,30]
[380264498,1755630377600,-1809.01,0.00022999,30]
[380264499,1755630377651,-3805.93,0.00022999,30]
[380264500,1755630377701,-400.0,0.00022999,30]
[380264501,1755630377750,-2010.96,0.00022999,30]
[380264502,1755630377800,-1929.81,0.00022999,30]
[380264503,1755630377850,-2130.28,0.00022999,30]
[380264504,1755630377900,-846.47,0.00022999,30]
[380264505,1755630377950,-4782.04,0.00022999,30]
[380264506,1755630378000,-400.73194738,0.00022999,30]
[380264507,1755630378050,-1217.18,0.00022999,30]
[380264508,1755630378102,-490.99,0.00022999,30]
[380264509,1755630378153,-400.0,0.00022999,30]
[380264510,1755630378206,-400.0,0.00022999,30]
[380264511,1755630378260,-400.0,0.00022999,30]
[380264512,1755630378315,-4734.21,0.00022999,30]
[380264513,1755630378367,-928.72,0.00022999,30]
[380264514,1755630378420,-400.0,0.00022999,30]
[380264515,1755630378468,-258.1989364,0.00022999,30]
[380264516,1755630378794,-400.0,0.00022999,30]
[380264517,1755630378850,-400.0,0.00022999,30]
[380264518,1755630378907,-400.0,0.00022999,30]
[380264519,1755630378961,-1675.25,0.00022999,30]
[380264520,1755630379018,-1922.59,0.00022999,30]
[380264521,1755630379075,-1996.2,0.00022999,30]
[380264522,1755630379134,-3257.29,0.00022999,30]
[380264523,1755630379190,-400.0,0.00022999,30]
[380264524,1755630379253,-400.0,0.00022999,30]
[380264525,1755630379318,-593.75,0.00022999,30]
[380264526,1755630379377,-400.0,0.00022999,30]
[380264527,1755630379432,-2073.59,0.00022999,30]
[380264528,1755630379485,-861.27,0.00022999,30]
[380264529,1755630379537,-1189.14,0.00022999,30]
[380264530,1755630379594,-400.0,0.00022999,30]
[380264531,1755630379642,-400.0,0.00022999,30]
[380264532,1755630379694,-400.0,0.00022999,30]
[380264533,1755630379747,-422.52,0.00022999,30]
[380264534,1755630379801,-1492.14,0.00022999,30]
[380264535,1755630379856,-3952.06,0.00022999,30]
[380264536,1755630379911,-340.2440661,0.00022999,30]
[380264537,1755630379966,-400.0,0.00022999,30]
[380264538,1755630380020,-2223.29,0.00022999,30]
[380264539,1755630380075,-1658.3,0.00022999,30]
[380264540,1755630380134,-3001.12,0.00022999,30]
[380264541,1755630380181,-831.55,0.00022999,30]
[380264542,1755630380230,-400.0,0.00022999,30]
[380264543,1755630380280,-400.0,0.00022999,30]
[380264544,1755630380335,-1489.0,0.00022999,30]
[380264545,1755630380385,-1042.89,0.00022999,30]
[380264546,1755630380430,-400.0,0.00022999,30]
[380264547,1755630380482,-3777.75,0.00022999,30]
[380264548,1755630380532,-712.93,0.00022999,30]
[380264549,1755630380584,-801.03,0.00022999,30]
[380264550,1755630380631,-1627.46,0.00022999,30]
[380264551,1755630380681,-400.0,0.00022999,30]
[380264552,1755630380732,-1237.8,0.00022999,30]
[380264553,1755630380778,-400.0,0.00022999,30]
[380264554,1755630380824,-669.09,0.00022999,30]
[380264555,1755630380870,-400.0,0.00022999,30]
[380264556,1755630380916,-6671.97,0.00022999,30]
[380264557,1755630380961,-2229.74,0.00022999,30]
[380264558,1755630381008,-400.0,0.00022999,30]
[380264559,1755630381051,-2374.67,0.00022999,30]
[380264560,1755630381100,-400.0,0.00022999,30]
[380264561,1755630381145,-3149.01,0.00022999,30]
[380264562,1755630381193,-2157.52,0.00022999,30]
[380264563,1755630381239,-400.0,0.00022999,30]
[380264564,1755630381289,-400.0,0.00022999,30]
[380264565,1755630381339,-400.0,0.00022999,30]
[380264566,1755630381388,-2318.08,0.00022999,30]
[380264567,1755630381432,-400.0,0.00022999,30]
[380264568,1755630381481,-2788.58,0.00022999,30]
[380264569,1755630381526,-666.25,0.00022999,30]
[380264570,1755630381570,-739.46,0.00022999,30]
[380264571,1755630381614,-400.0,0.00022999,30]
[380264572,1755630381663,-400.0,0.00022999,30]
[380264573,1755630381707,-1590.45,0.00022999,30]
[380264574,1755630381751,-1065.74,0.00022999,30]
[380264575,1755630381794,-400.0,0.00022999,30]
[380264576,1755630381840,-3699.35,0.00022999,30]
[380264577,1755630381885,-575.07,0.00022999,30]
[380264578,1755630381931,-400.0,0.00022999,30]
[380264579,1755630381978,-498.22,0.00022999,30]
[380264580,1755630382023,-2562.93,0.00022999,30]
[380264581,1755630382068,-400.0,0.00022999,30]
[380264582,1755630382114,-400.0,0.00022999,30]
[380264583,1755630382160,-400.0,0.00022999,30]
[380264584,1755630382206,-400.0,0.00022999,30]
[380264585,1755630382250,-400.0,0.00022999,30]
[380264586,1755630382297,-3561.21,0.00022999,30]
[380264587,1755630382343,-400.0,0.00022999,30]
[380264588,1755630382391,-6511.48,0.00022999,30]
[380264589,1755630382437,-2210.73,0.00022999,30]
[380264590,1755630382482,-2425.08,0.00022999,30]
[380264591,1755630382523,-341.79285105,0.00022999,30]
[380264592,1755630382564,-590.81,0.00022999,30]
[380264593,1755630382606,-400.0,0.00022999,30]
[380264594,1755630382648,-1227.79,0.00022999,30]
[380264595,1755630382690,-752.39,0.00022999,30]
[380264596,1755630382736,-400.0,0.00022999,30]
[380264597,1755630382777,-400.0,0.00022999,30]
[380264598,1755630382819,-463.19,0.00022999,30]
[380264599,1755630382861,-400.0,0.00022999,30]
[380264600,1755630382903,-400.0,0.00022999,30]
[380264601,1755630382950,-400.0,0.00022999,30]
[380264602,1755630382993,-498.99878,0.00022999,30]
[380264603,1755630383041,-8505.94,0.00022999,30]
[380264604,1755630383086,-1561.3,0.00022999,30]
[380264605,1755630383135,-400.0,0.00022999,30]
[380264606,1755630383184,-400.0,0.00022999,30]
[380264607,1755630383235,-3372.85,0.00022999,30]
[380264608,1755630383290,-400.0,0.00022999,30]
[380264609,1755630383345,-1024.96,0.00022999,30]
[380264610,1755630383393,-1742.71,0.00022999,30]
[380264611,1755630383437,-400.0,0.00022999,30]
[380264612,1755630383482,-400.0,0.00022999,30]
[380264613,1755630383528,-496.82,0.00022999,30]
[380264614,1755630383576,-400.0,0.00022999,30]
[380264615,1755630383633,-944.83,0.00022999,30]
[380264616,1755630383679,-400.0,0.00022999,30]
[380264617,1755630383732,-12558.9,0.00022999,30]
[380264618,1755630383783,-1256.14,0.00022999,30]
[380264619,1755630383834,-2403.42,0.00022999,30]
[380264620,1755630383887,-3188.01,0.00022999,30]
[380264621,1755630383942,-400.0,0.00022999,30]
[380264622,1755630383998,-1406.06,0.00022999,30]
[380264623,1755630384051,-1252.64,0.00022999,30]
[380264624,1755630384101,-1348.48,0.00022999,30]
[380264625,1755630384151,-400.0,0.00022999,30]
[380264626,1755630384203,-2108.64,0.00022999,30]
[380264627,1755630384253,-2694.66,0.00022999,30]
[380264628,1755630384309,-2011.64,0.00022999,30]
[380264629,1755630384362,-400.0,0.00022999,30]
[380264630,1755630384415,-1676.47,0.00022999,30]
[380264631,1755630384801,-400.0,0.00022999,30]
[380264632,1755630384852,-1342.74,0.00022999,30]
[380264633,1755630384903,-771.77,0.00022999,30]
[380264634,1755630384955,-400.0,0.00022999,30]
[380264635,1755630385009,-400.0,0.00022999,30]
[380264636,1755630385061,-2147.28,0.00022999,30]
[380264637,1755630385114,-400.0,0.00022999,30]
[380264638,1755630385166,-400.0,0.00022999,30]
[380264639,1755630385218,-400.0,0.00022999,30]
[380264640,1755630385267,-451.93,0.00022999,30]
[380264641,1755630385318,-1004.69,0.00022999,30]
[380264642,1755630385370,-400.0,0.00022999,30]
[380264643,1755630385423,-400.0,0.00022999,30]
[380264644,1755630385473,-2289.31,0.00022999,30]
[380264645,1755630385520,-759.13,0.00022999,30]
[380264646,1755630385565,-400.0,0.00022999,30]
[380264647,1755630385610,-1766.6,0.00022999,30]
[380264648,1755630385656,-2391.14,0.00022999,30]
[380264649,1755630385701,-764.46,0.00022999,30]
[380264650,1755630385747,-1321.22,0.00022999,30]
[380264651,1755630385789,-2045.43,0.00022999,30]
[380264652,1755630385834,-2644.5,0.00022999,30]
[380264653,1755630385881,-400.0,0.00022999,30]
[380264654,1755630385930,-250.0,0.00022999,30]
[380264655,1755630385978,-400.0,0.00022999,30]
[380264656,1755630386028,-1028.93,0.00022999,30]
[380264657,1755630386078,-2587.83,0.00022999,30]
[380264658,1755630386126,-1425.98,0.00022999,30]
[380264659,1755630386171,-1829.49,0.00022999,30]
[380264660,1755630386217,-574.26,0.00022999,30]
[380264661,1755630386263,-400.0,0.00022999,30]
[380264662,1755630386313,-414.53,0.00022999,30]
[380264663,1755630386364,-1609.98,0.00022999,30]
[380264664,1755630386416,-850.85,0.00022999,30]
[380264665,1755630386466,-9247.25,0.00022999,30]
[380264666,1755630386514,-1988.32,0.00022999,30]
[380264667,1755630386562,-828.08,0.00022999,30]
[380264668,1755630386606,-400.0,0.00022999,30]
[380264669,1755630386647,-400.0,0.00022999,30]
[380264670,1755630386690,-451.4606209,0.00022999,30]
[380264671,1755630386733,-400.0,0.00022999,30]
[380264672,1755630386777,-402.0,0.00022999,30]
[380264673,1755630386822,-3327.81,0.00022999,30]
[380264674,1755630386868,-2635.88,0.00022999,30]
[380264675,1755630386912,-400.0,0.00022999,30]
[380264676,1755630386956,-3966.88,0.00022999,30]
[380264677,1755630387002,-2274.92,0.00022999,30]
[380264678,1755630387048,-1675.13,0.00022999,30]
[380264679,1755630387095,-400.0,0.00022999,30]
[380264680,1755630387147,-9159.69,0.00022999,30]
[380264681,1755630387201,-400.0,0.00022999,30]
[380264682,1755630387255,-400.0,0.00022999,30]
[380264683,1755630387311,-633.22,0.00022999,30]
[380264684,1755630387365,-400.0,0.00022999,30]
[380264685,1755630387415,-400.0,0.00022999,30]
[380264686,1755630387462,-4474.11,0.00022999,30]
[380264687,1755630387507,-400.0,0.00022999,30]
[380264688,1755630387552,-2597.2,0.00022999,30]
[380264689,1755630387599,-1312.13,0.00022999,30]
[380264690,1755630387645,-400.0,0.00022999,30]
[380264691,1755630387689,-400.0,0.00022999,30]
[380264692,1755630387734,-1129.6,0.00022999,30]
[380264693,1755630387779,-1454.3,0.00022999,30]
[380264694,1755630387823,-400.0,0.00022999,30]
[380264695,1755630387868,-400.0,0.00022999,30]
[380264696,1755630387913,-892.58,0.00022999,30]
[380264697,1755630387958,-704.57,0.00022999,30]
[380264698,1755630388004,-1389.72,0.00022999,30]
[380264699,1755630388053,-1626.22,0.00022999,30]
[380264700,1755630388102,-400.0,0.00022999,30]
[380264701,1755630388150,-400.0,0.00022999,30]
[380264702,1755630388199,-400.0,0.00022999,30]
[380264703,1755630388245,-402.52,0.00022999,30]
[380264704,1755630388296,-2232.67,0.00022999,30]
[380264705,1755630388349,-758.46,0.00022999,30]
[380264706,1755630388403,-171.71830218,0.00022999,30]
[380264707,1755630388455,-1948.15,0.00022999,30]
[380264708,1755630388502,-400.0,0.00022999,30]
[380264709,1755630388553,-1767.01,0.00022999,30]
[380264710,1755630388609,-646.97,0.00022999,30]
[380264711,1755630388654,-1951.89,0.00022999,30]
[380264712,1755630388700,-1591.73,0.00022999,30]
[380264713,1755630388744,-1978.37,0.00022999,30]
[380264714,1755630388789,-3882.91,0.00022999,30]
[380264715,1755630388834,-988.17,0.00022999,30]
[380264716,1755630388879,-760.8,0.00022999,30]
[380264717,1755630388923,-1713.52,0.00022999,30]
[380264718,1755630388967,-452.3,0.00022999,30]
[380264719,1755630389011,-1178.32,0.00022999,30]
[380264720,1755630389057,-400.0,0.00022999,30]
[380264721,1755630389108,-1901.5,0.00022999,30]
[380264722,1755630389155,-474.04,0.00022999,30]
[380264723,1755630389201,-1325.74,0.00022999,30]
[380264724,1755630389246,-400.0,0.00022999,30]
[380264725,1755630389292,-487.86050557,0.00022999,30]
[380264726,1755630389341,-400.0,0.00022999,30]
[380264727,1755630389390,-2626.25,0.00022999,30]
[380264728,1755630389439,-400.0,0.00022999,30]
[380264729,1755630389489,-1256.66,0.00022999,30]
[380264730,1755630389538,-2345.23,0.00022999,30]
[380264731,1755630389589,-466.09,0.00022999,30]
[380264732,1755630389646,-2766.96,0.00022999,30]
[380264733,1755630389698,-400.0,0.00022999,30]
[380264734,1755630389750,-843.54,0.00022999,30]
[380264735,1755630389813,-2199.04,0.00022999,30]
[380264736,1755630389869,-400.0,0.00022999,30]
[380264737,1755630389924,-3426.21,0.00022999,30]
[380264738,1755630389983,-8015.84,0.00022999,30]
[380264739,1755630390038,-400.0,0.00022999,30]
[380264740,1755630390092,-1431.42,0.00022999,30]
[380264741,1755630390151,-400.0,0.00022999,30]
[380264742,1755630390205,-2339.85,0.00022999,30]
[380264743,1755630390256,-1879.73,0.00022999,30]
[380264744,1755630390307,-2605.4,0.00022999,30]
[380264745,1755630390656,-400.0,0.00022999,30]
[380264746,1755630390707,-3015.33,0.00022999,30]
[380264747,1755630390752,-2170.2,0.00022999,30]
[380264748,1755630390796,-2965.05,0.00022999,30]
[380264749,1755630390840,-400.0,0.00022999,30]
[380264750,1755630390885,-400.0,0.00022999,30]
[380264751,1755630390927,-1003.58,0.00022999,30]
[380264752,1755630390972,-1775.32,0.00022999,30]
[380264753,1755630391018,-781.97,0.00022999,30]
[380264754,1755630391062,-667.84,0.00022999,30]
[380264755,1755630391105,-2499.51,0.00022999,30]
[380264756,1755630391149,-1721.04,0.00022999,30]
[380264757,1755630391193,-400.0,0.00022999,30]
[380264758,1755630391247,-2164.63,0.00022999,30]
[380264759,1755630391299,-657.01,0.00022999,30]
[380264760,1755630391349,-400.0,0.00022999,30]
[380264761,1755630391396,-1626.0,0.00022999,30]
[380264762,1755630391443,-915.71,0.00022999,30]
[380264763,1755630391492,-400.0,0.00022999,30]
[380264764,1755630391537,-400.0,0.00022999,30]
[380264765,1755630391582,-400.0,0.00022999,30]
[380264766,1755630391626,-400.0,0.00022999,30]
[380264767,1755630391670,-400.0,0.00022999,30]
[380264768,1755630391713,-834.1,0.00022999,30]
[380264769,1755630391756,-762.72,0.00022999,30]
[380264770,1755630391798,-400.0,0.00022999,30]
[380264771,1755630391853,-812.96,0.00022999,30]
[380264772,1755630391910,-1795.88,0.00022999,30]
[380264773,1755630391967,-812.84,0.00022999,30]
[380264774,1755630392017,-1939.3,0.00022999,30]
[380264775,1755630392067,-400.0,0.00022999,30]
[380264776,1755630392116,-2089.8,0.00022999,30]
[380264777,1755630392165,-2037.62,0.00022999,30]
[380264778,1755630392216,-400.0,0.00022999,30]
[380264779,1755630392264,-400.0,0.00022999,30]
[380264780,1755630392312,-10633.1,0.00022999,30]
[380264781,1755630392357,-400.0,0.00022999,30]
[380264782,1755630392401,-400.0,0.00022999,30]
[380264783,1755630392443,-400.0,0.00022999,30]
[380264784,1755630392487,-5984.63,0.00022999,30]
[380264785,1755630392528,-912.15,0.00022999,30]
[380264786,1755630392570,-1867.16,0.00022999,30]
[380264787,1755630392611,-1640.45,0.00022999,30]
[380264788,1755630392651,-927.26,0.00022999,30]
[380264789,1755630392694,-400.0,0.00022999,30]
[380264790,1755630392742,-1264.15,0.00022999,30]
[380264791,1755630392785,-854.72,0.00022999,30]
[380264792,1755630392828,-822.45,0.00022999,30]
[380264793,1755630392872,-1632.29,0.00022999,30]
[380264794,1755630392918,-3121.15,0.00022999,30]
[380264795,1755630392966,-1147.83,0.00022999,30]
[380264796,1755630393015,-2642.11,0.00022999,30]
[380264797,1755630393063,-400.0,0.00022999,30]
[380264798,1755630393110,-400.0,0.00022999,30]
[380264799,1755630393156,-437.64,0.00022999,30]
[380264800,1755630393208,-400.0,0.00022999,30]
[380264801,1755630393259,-2401.94,0.00022999,30]
[380264802,1755630393315,-400.0,0.00022999,30]
[380264803,1755630393370,-2923.07,0.00022999,30]
[380264804,1755630393422,-400.0,0.00022999,30]
[380264805,1755630393472,-531.2,0.00022999,30]
[380264806,1755630393520,-984.29,0.00022999,30]
[380264807,1755630393567,-400.0,0.00022999,30]
[380264808,1755630393615,-400.0,0.00022999,30]
[380264809,1755630393661,-888.25,0.00022999,30]
[380264810,1755630393708,-842.32,0.00022999,30]
[380264811,1755630393751,-400.0,0.00022999,30]
[380264812,1755630393797,-673.56,0.00022999,30]
[380264813,1755630393844,-417.2,0.00022999,30]
[380264814,1755630393890,-1920.95,0.00022999,30]
[380264815,1755630393936,-400.0,0.00022999,30]
[380264816,1755630393982,-400.0,0.00022999,30]
[380264817,1755630394029,-1843.66,0.00022999,30]
[380264818,1755630394078,-400.0,0.00022999,30]
[380264819,1755630394129,-1522.14,0.00022999,30]